bitfinex/quotes_SOLUSD_20230702
["timestamp","ask_amount","ask_price","bid_price","bid_amount"]
[1688272799712,77.244,19.017,19.002,20.0]
[1688272800304,55.0,19.017,19.002,20.0]
[1688272801910,77.243,19.017,19.002,20.0]
[1688272802115,55.0,19.017,19.002,20.0]
[1688272802301,96.4477,19.018,19.002,20.0]
[1688272803010,118.6897,19.018,19.006,79.55]
[1688272803214,118.6897,19.018,19.007,20.0]
[1688272803920,55.0,19.017,19.007,20.0]
[1688272804104,77.243,19.017,19.007,20.0]
[1688272808624,96.4477,19.018,19.007,20.0]
[1688272808925,118.6897,19.018,19.007,20.0]
[1688272809226,118.6897,19.018,19.002,20.0]
[1688272810009,77.243,19.017,19.002,20.0]
[1688272810410,55.0,19.017,19.002,20.0]
[1688272810622,77.243,19.017,19.002,20.0]
[1688272811824,55.0,19.017,19.002,20.0]
[1688272812003,77.244,19.017,19.002,20.0]
[1688272813929,55.0,19.017,19.002,20.0]
[1688272814226,77.243,19.017,19.002,20.0]
[1688272814406,55.0,19.017,19.002,20.0]
[1688272815022,96.4477,19.018,19.002,20.0]
[1688272816911,118.6897,19.018,19.002,20.0]
[1688272817413,96.4477,19.018,19.002,20.0]
[1688272819933,55.0,19.017,19.002,20.0]
[1688272821132,77.243,19.017,19.002,20.0]
[1688272823716,96.4477,19.018,19.002,20.0]
[1688272824117,118.6897,19.018,19.002,20.0]
[1688272824431,96.4477,19.018,19.002,20.0]
[1688272825038,118.6897,19.018,19.002,20.0]
[1688272826037,55.0,19.017,19.002,20.0]
[1688272826234,77.244,19.017,19.002,20.0]
[1688272826921,55.0,19.017,19.002,20.0]
[1688272828029,77.243,19.017,19.002,20.0]
[1688272828620,77.243,19.017,18.995,20.0]
[1688272829328,77.243,19.017,18.995,128.37393958]
[1688272829513,55.0,19.017,19.0,19.58]
[1688272829714,55.0,19.017,19.001,20.0]
[1688272831425,77.243,19.017,19.001,20.0]
[1688272831740,55.0,19.017,19.001,20.0]
[1688272833239,77.244,19.017,19.001,20.0]
[1688272833536,55.0,19.017,18.997,20.0]
[1688272834432,55.0,19.017,19.0,19.77]
[1688272834635,19.68,19.03,19.01,19.77]
[1688272834835,92.9496,19.021,19.011,20.0]
[1688272835029,19.68,19.03,19.011,20.0]
[1688272835030,19.68,19.03,19.016,79.511]
[1688272835232,22.232,19.026,19.016,79.511]
[1688272835426,22.232,19.026,19.016,22.244]
[1688272837525,55.0,19.025,19.014,22.246]
[1688272837847,22.237,19.022,19.01,64.18180855]
[1688272838145,55.0,19.021,19.011,20.0]
[1688272838465,55.0,19.021,19.011,99.531]
[1688272838466,77.239,19.021,19.011,99.531]
[1688272838649,167.394,19.021,19.011,99.531]
[1688272839538,145.155,19.021,19.011,99.531]
[1688272840053,19.63,19.02,18.995,26.70228024]
[1688272840235,57.261,19.019,19.001,57.311]
[1688272840549,55.0,19.018,19.002,20.0]
[1688272841151,55.0,19.018,19.002,85.78861185]
[1688272841448,55.0,19.019,19.002,85.78861185]
[1688272842934,22.244,19.017,19.002,85.78861185]
[1688272843142,55.0,19.016,19.002,85.78861185]
[1688272843450,77.245,19.016,19.002,85.78861185]
[1688272843746,55.0,19.016,19.002,85.78861185]
[1688272844135,55.0,19.016,19.006,79.549]
[1688272844332,55.0,19.017,19.011,22.25]
[1688272844547,139.21243956,19.021,19.012,20.0]
[1688272844734,116.97343956,19.021,19.014,22.245]
[1688272844939,90.155,19.021,19.014,22.245]
[1688272845540,57.238,19.026,19.014,22.245]
[1688272846051,22.234,19.025,19.014,22.245]
[1688272847547,55.0,19.024,19.014,22.245]
[1688272847757,22.238,19.022,19.014,22.245]
[1688272848052,55.0,19.021,19.014,22.245]
[1688272848551,57.236,19.027,19.014,22.245]
[1688272848749,22.238,19.021,19.014,22.245]
[1688272848955,55.0,19.02,19.014,22.245]
[1688272851949,22.222,19.035,19.015,68.44072296]
[1688272852258,22.229,19.029,19.018,183.982]
[1688272852560,22.229,19.029,19.019,20.0]
[1688272852745,22.229,19.029,19.0,217.6]
[1688272852943,22.229,19.029,19.002,2.33668618]
[1688272853252,22.229,19.029,19.002,10.83719922]
[1688272853467,22.229,19.029,19.011,79.532]
[1688272854140,94.1517,19.033,19.011,79.532]
[1688272854141,94.1517,19.033,19.011,90.36919922]
[1688272854347,94.1517,19.033,19.012,10.83719922]
[1688272854543,22.227,19.031,19.018,183.979]
[1688272854840,22.223,19.035,19.018,183.979]
[1688272855056,94.1517,19.035,19.018,183.979]
[1688272855251,22.224,19.033,19.018,183.979]
[1688272855563,22.223,19.034,19.02,19.68]
[1688272855751,22.221,19.036,19.024,79.476]
[1688272856155,92.7532,19.039,19.024,79.476]
[1688272856156,22.222,19.035,19.024,79.476]
[1688272856359,57.179,19.046,19.03,19.63]
[1688272856543,57.179,19.046,19.035,22.221]
[1688272856544,22.215,19.041,19.035,22.221]
[1688272857241,92.7532,19.044,19.035,22.221]
[1688272857242,22.213,19.043,19.035,22.221]
[1688272859044,22.213,19.043,19.03,19.58]
[1688272859241,19.75,19.04,19.02,19.74]
[1688272859447,19.75,19.04,19.01,475.88]
[1688272859448,22.225,19.032,19.023,22.235]
[1688272859850,22.228,19.03,19.023,22.235]
[1688272860045,55.0,19.029,19.023,22.235]
[1688272860745,22.231,19.028,19.023,22.235]
[1688272860951,55.0,19.029,19.023,22.235]
[1688272861163,55.0,19.029,19.023,79.481]
[1688272861567,55.0,19.03,19.023,22.235]
[1688272862455,77.228,19.03,19.019,22.239]
[1688272863250,77.228,19.03,19.02,20.0]
[1688272863953,77.228,19.03,19.019,20.0]
[1688272864574,77.228,19.03,19.02,22.238]
[1688272864868,77.228,19.03,19.021,42.237]
[1688272870976,77.228,19.03,19.01,77.025]
[1688272870977,96.858,19.03,19.01,77.025]
[1688272871159,96.858,19.03,19.011,20.0]
[1688272871567,96.858,19.03,19.015,22.245]
[1688272871770,96.858,19.03,19.016,20.0]
[1688272871968,96.858,19.03,19.018,22.242]
[1688272872461,96.858,19.03,19.019,20.0]
[1688272872660,96.858,19.03,19.018,22.242]
[1688272873061,96.858,19.03,19.016,22.243]
[1688272873261,96.858,19.03,19.014,22.246]
[1688272874382,96.858,19.03,19.014,21.746]
[1688272876789,96.858,19.03,19.012,22.248]
[1688272880486,41.858,19.03,19.012,22.248]
[1688272881770,55.0,19.029,19.012,22.248]
[1688272881969,22.235,19.024,19.012,22.248]
[1688272882178,55.0,19.023,19.012,22.248]
[1688272882379,22.239,19.021,19.012,22.248]
[1688272882578,55.0,19.02,19.012,22.248]
[1688272883169,77.239,19.02,19.012,22.248]
[1688272888986,55.0,19.02,19.012,22.248]
[1688272889288,22.24,19.02,19.012,22.248]
[1688272889486,55.0,19.019,19.012,22.248]
[1688272889690,77.241,19.019,19.012,22.248]
[1688272890591,55.0,19.019,19.012,22.248]
[1688272890792,55.0,19.02,19.012,22.248]
[1688272891179,77.239,19.02,19.012,22.248]
[1688272891881,77.239,19.02,19.01,22.25]
[1688272892191,77.239,19.02,19.011,20.0]
[1688272892488,77.239,19.02,19.011,42.25]
[1688272893691,77.239,19.02,19.011,20.0]
[1688272893896,77.239,19.02,19.009,20.0]
[1688272894194,77.239,19.02,19.011,22.25]
[1688272894407,77.239,19.02,19.012,22.248]
[1688272895501,77.239,19.02,19.01,22.25]
[1688272895818,77.239,19.02,19.011,20.0]
[1688272896472,77.239,19.02,19.007,20.0]
[1688272896785,77.239,19.02,19.007,42.252]
[1688272897877,99.9898,19.026,19.011,22.249]
[1688272898091,57.214,19.034,19.011,22.249]
[1688272898292,83.21782532,19.029,19.012,2.39388293]
[1688272898505,22.234,19.025,19.017,22.243]
[1688272898879,22.234,19.025,19.01,19.71]
[1688272899088,22.234,19.025,19.011,20.0]
[1688272899402,22.234,19.025,19.014,22.246]
[1688272899581,22.236,19.023,19.014,22.246]
[1688272899781,55.0,19.022,19.014,22.246]
[1688272900096,22.237,19.022,19.014,22.246]
[1688272900300,55.0,19.021,19.014,22.246]
[1688272900592,77.238,19.021,19.011,41.052126]
[1688272900782,77.238,19.021,19.013,22.247]
[1688272902489,77.238,19.021,19.011,20.0]
[1688272902697,77.238,19.021,19.008,22.247]
[1688272902698,77.238,19.021,19.012,22.248]
[1688272905487,118.33240374,19.025,19.012,22.248]
[1688272905804,22.237,19.023,19.012,22.248]
[1688272907682,77.218,19.033,19.012,126.76]
[1688272907887,22.233,19.026,19.018,22.241]
[1688272908082,22.233,19.026,19.016,57.267]
[1688272908083,22.233,19.026,19.021,22.238]
[1688272909588,55.0,19.025,19.021,22.238]
[1688272909980,55.0,19.025,19.017,57.267]
[1688272910202,77.234,19.025,19.014,22.246]
[1688272911788,134.474,19.025,19.014,22.246]
[1688272913104,134.474,19.025,19.014,79.519]
[1688272913105,77.234,19.025,19.014,79.519]
[1688272914598,19.63,19.03,19.014,22.246]
[1688272914803,96.143,19.031,19.014,79.519]
[1688272915090,96.143,19.031,19.015,73.08655105]
[1688272915091,22.228,19.03,19.015,73.08655105]
[1688272915401,22.228,19.03,19.02,19.58]
[1688272915601,22.228,19.03,19.023,22.235]
[1688272916100,57.196,19.04,19.023,79.481]
[1688272916498,90.275,19.046,19.023,79.481]
[1688272916499,22.218,19.039,19.023,79.481]
[1688272916693,194.605,19.046,19.03,19.77]
[1688272916694,22.216,19.041,19.03,19.77]
[1688272917012,22.215,19.041,19.033,22.224]
[1688272917904,19.63,19.04,19.03,57.218]
[1688272918093,183.798,19.037,19.022,22.236]
[1688272918490,55.0,19.036,19.022,22.236]
[1688272918706,22.225,19.032,19.022,22.236]
[1688272919005,57.212,19.035,19.015,181.758]
[1688272919006,22.23,19.028,19.021,22.238]
[1688272919207,55.0,19.027,19.021,22.238]
[1688272919397,55.0,19.031,19.021,22.238]
[1688272919605,22.228,19.03,19.021,22.238]
[1688272919793,55.0,19.029,19.021,22.238]
[1688272919996,22.232,19.027,19.021,22.238]
[1688272920306,55.0,19.026,19.021,22.238]
[1688272921789,77.233,19.026,19.017,55.0]
[1688272922004,55.0,19.026,19.021,22.237]
[1688272922307,22.228,19.03,19.021,22.237]
[1688272923212,22.227,19.031,19.021,22.237]
[1688272923514,94.2211,19.035,19.021,22.237]
[1688272923714,22.227,19.031,19.021,22.237]
[1688272924011,55.0,19.03,19.021,22.237]
[1688272924204,22.23,19.029,19.021,22.237]
[1688272924399,55.0,19.028,19.021,22.237]
[1688272924618,55.0,19.03,19.021,22.237]
[1688272925409,77.227,19.031,19.021,22.237]
[1688272931424,19.59,19.03,19.001,19.1719]
[1688272931609,22.237,19.022,19.011,79.531]
[1688272931811,55.0,19.021,19.012,57.259]
[1688272932116,77.239,19.021,19.014,22.245]
[1688272933412,55.0,19.021,19.014,22.245]
[1688272934005,77.239,19.021,19.01,57.284]
[1688272934212,77.239,19.021,19.014,22.246]
[1688272941045,55.0,19.021,19.014,22.246]
[1688272941417,77.238,19.021,19.014,22.246]
[1688272942018,77.238,19.021,19.009,114.573]
[1688272942019,77.238,19.021,19.009,57.286]
[1688272942221,77.238,19.021,19.012,22.248]
[1688272942533,55.0,19.021,19.012,22.248]
[1688272943031,77.238,19.021,19.012,22.248]
[1688272943921,55.0,19.021,19.012,22.248]
[1688272944123,77.238,19.021,19.012,22.248]
[1688272950247,77.238,19.021,19.001,77.00248719]
[1688272950543,77.238,19.021,19.002,31.59581026]
[1688272951842,55.0,19.021,19.013,22.247]
[1688272952050,112.7726,19.025,19.013,79.523]
[1688272952339,112.7726,19.025,19.013,22.247]
[1688272952340,22.237,19.022,19.013,22.247]
[1688272953834,22.24,19.02,19.013,22.247]
[1688272954039,55.0,19.019,19.013,22.247]
[1688272954230,77.24,19.019,19.013,22.247]
[1688272956747,22.24,19.019,19.013,22.247]
[1688272956934,90.5386,19.025,19.013,22.247]
[1688272957135,112.7726,19.025,19.014,0.89970292]
[1688272957338,112.7726,19.025,19.017,22.242]
[1688272958239,55.0,19.024,19.017,22.242]
[1688272958438,320.29992183,19.047,19.017,22.242]
[1688272958757,22.223,19.035,19.018,30.88623191]
[1688272959040,22.223,19.035,19.023,22.236]
[1688272960149,55.0,19.034,19.023,22.236]
[1688272960336,22.227,19.031,19.023,22.236]
[1688272960537,55.0,19.03,19.023,22.236]
[1688272960733,77.228,19.03,19.023,22.236]
[1688272961438,77.228,19.03,19.018,20.0]
[1688272961637,77.228,19.03,19.016,20.0]
[1688272961836,22.229,19.029,19.021,22.238]
[1688272962035,55.0,19.028,19.021,22.238]
[1688272962731,57.21,19.035,19.021,22.238]
[1688272963153,22.228,19.03,19.021,21.738]
[1688272963346,22.226,19.032,19.021,21.738]
[1688272964150,55.0,19.031,19.021,21.738]
[1688272964352,77.227,19.031,19.021,21.738]
[1688272970756,55.0,19.031,19.016,77.268]
[1688272970952,77.227,19.031,19.021,22.238]
[1688272972256,134.449,19.031,19.021,22.238]
[1688272972640,77.227,19.031,19.021,22.238]
[1688272972959,77.228,19.031,19.021,22.238]
[1688272974251,77.228,19.031,19.016,57.268]
[1688272974557,19.54,19.03,19.017,6.38801735]
[1688272974858,22.232,19.027,19.017,22.242]
[1688272975035,22.235,19.024,19.017,22.242]
[1688272975239,22.238,19.022,19.017,22.242]
[1688272975649,77.238,19.021,19.017,22.242]
[1688272976255,77.238,19.021,19.015,22.244]
[1688272980057,77.238,19.021,19.01,57.275]
[1688272980357,77.238,19.021,19.014,22.246]
[1688272981752,77.238,19.021,19.012,22.248]
[1688272984843,55.0,19.021,19.012,79.527]
[1688272985044,97.8594,19.027,19.013,0.99719745]
[1688272985045,55.0,19.022,19.013,0.99719745]
[1688272985244,22.238,19.021,19.015,22.244]
[1688272985461,77.24,19.02,19.015,22.244]
[1688272987259,77.24,19.02,19.011,20.0]
[1688272987454,77.24,19.02,19.01,20.0]
[1688272987968,77.24,19.02,19.01,42.25]
[1688272991069,77.24,19.02,19.011,0.86695795]
[1688272991362,77.24,19.02,19.013,22.247]
[1688272991762,55.0,19.02,19.013,22.247]
[1688272991953,77.239,19.02,19.013,22.247]
[1688272993062,22.235,19.024,19.013,79.523]
[1688272993270,22.235,19.024,19.014,2.01350371]
[1688272993451,22.235,19.024,19.017,22.243]
[1688272994665,22.235,19.024,19.015,22.244]
[1688272995170,55.0,19.023,19.015,22.244]
[1688272995356,22.239,19.021,19.015,22.244]
[1688272995559,55.0,19.02,19.015,22.244]
[1688272996366,77.24,19.02,19.01,20.0]
[1688272996955,77.24,19.02,19.011,22.249]
[1688272998269,134.495,19.02,19.011,22.249]
[1688272998465,77.24,19.02,19.011,22.249]
[1688272999769,55.0,19.02,19.011,22.249]
[1688272999959,55.0,19.02,19.011,44.498]
[1688273000268,22.237,19.022,19.012,1.16107332]
[1688273000465,22.237,19.022,19.015,22.245]
[1688273001555,55.0,19.021,19.015,22.245]
[1688273001757,77.239,19.021,19.015,22.245]
[1688273002555,22.239,19.021,19.015,22.245]
[1688273003878,55.0,19.02,19.015,22.245]
[1688273007265,55.0,19.02,19.011,22.249]
[1688273007579,77.24,19.02,19.012,22.248]
[1688273009057,55.0,19.02,19.012,126.76]
[1688273011084,55.0,19.021,19.012,126.76]
[1688273011280,55.0,19.021,19.013,0.9308106]
[1688273011574,55.0,19.021,19.015,22.245]
[1688273012572,77.237,19.022,19.015,22.245]
[1688273012962,22.234,19.025,19.015,22.245]
[1688273013176,22.235,19.024,19.016,1.24165731]
[1688273013673,22.235,19.024,19.016,22.243]
[1688273014073,22.235,19.024,19.014,22.245]
[1688273014476,22.239,19.021,19.014,22.245]
[1688273014680,22.241,19.019,19.014,22.245]
[1688273015078,55.0,19.018,19.014,22.245]
[1688273016469,77.242,19.018,19.014,22.245]
[1688273016871,77.242,19.018,19.01,39.76]
[1688273017772,77.242,19.018,19.01,62.01]
[1688273019485,77.242,19.018,19.01,42.25]
[1688273022699,55.0,19.018,19.01,99.535]
[1688273022988,55.0,19.019,19.01,99.535]
[1688273023384,22.223,19.035,19.01,217.56320354]
[1688273023589,19.57,19.05,19.01,217.56320354]
[1688273023590,94.8447,19.038,19.02,98.91]
[1688273023885,19.94,19.05,19.031,183.856]
[1688273024193,94.8447,19.047,19.032,18.82383555]
[1688273024484,2.99992183,19.057,19.032,18.82383555]
[1688273024485,57.139,19.059,19.036,79.425]
[1688273024673,57.139,19.059,19.043,79.394]
[1688273024674,113.802,19.055,19.043,79.394]
[1688273024888,91.603,19.055,19.043,79.394]
[1688273025471,22.195,19.058,19.043,79.394]
[1688273027185,22.195,19.058,19.043,22.211]
[1688273027392,34.21024178,19.063,19.043,22.211]
[1688273027393,57.125,19.064,19.044,20.0]
[1688273027575,22.195,19.059,19.05,22.204]
[1688273028871,7.97328907,19.063,19.05,22.204]
[1688273029184,26.50754534,19.067,19.051,30.83719922]
[1688273029185,22.185,19.067,19.051,30.83719922]
[1688273029389,22.185,19.067,19.058,22.194]
[1688273029576,57.091,19.075,19.058,79.335]
[1688273029777,22.185,19.067,19.052,58.25743993]
[1688273030074,22.185,19.067,19.052,22.185]
[1688273030470,79.299,19.067,19.055,22.198]
[1688273031684,79.299,19.067,19.052,22.185]
[1688273031889,20.0,19.066,19.046,22.208]
[1688273032088,183.577,19.06,19.046,22.209]
[1688273032385,22.198,19.056,19.046,22.209]
[1688273032574,22.201,19.053,19.046,22.209]
[1688273032971,22.199,19.055,19.046,22.209]
[1688273034169,55.0,19.054,19.046,22.209]
[1688273034490,22.186,19.066,19.047,156.44856356]
[1688273034670,22.186,19.066,19.052,79.358]
[1688273034875,22.182,19.069,19.052,133.72391846]
[1688273035187,25.94893067,19.078,19.053,77.34425768]
[1688273035483,22.178,19.073,19.06,79.325]
[1688273035786,104.134,19.082,19.06,79.325]
[1688273035787,22.173,19.078,19.067,22.183]
[1688273035997,57.065,19.084,19.068,109.36591846]
[1688273035998,22.166,19.084,19.068,109.36591846]
[1688273036178,22.166,19.083,19.072,79.275]
[1688273036384,22.166,19.083,19.072,22.178]
[1688273036993,22.166,19.083,19.066,22.185]
[1688273037190,22.166,19.083,19.066,67.948118]
[1688273038479,104.117,19.085,19.066,67.948118]
[1688273038685,104.117,19.085,19.067,46.47513513]
[1688273038888,22.17,19.08,19.07,22.18]
[1688273039083,22.17,19.08,19.073,22.177]
[1688273039680,22.17,19.08,19.07,46.47513513]
[1688273039882,22.17,19.08,19.071,20.0]
[1688273040399,22.17,19.08,19.071,22.179]
[1688273042282,22.17,19.08,19.069,20.0]
[1688273042482,22.17,19.08,19.066,45.763118]
[1688273042483,183.432,19.076,19.066,45.763118]
[1688273042691,183.432,19.076,19.059,22.193]
[1688273042894,183.432,19.076,19.06,46.47513513]
[1688273043286,55.0,19.075,19.06,46.47513513]
[1688273043485,22.18,19.071,19.06,68.66713513]
[1688273043682,22.18,19.071,19.061,20.0]
[1688273044987,22.18,19.071,19.059,46.475135]
[1688273044988,55.0,19.07,19.059,46.475135]
[1688273045183,183.513,19.067,19.052,22.201]
[1688273045402,55.0,19.066,19.049,10.83719922]
[1688273045696,22.192,19.061,19.052,22.202]
[1688273046302,22.192,19.061,19.052,44.404]
[1688273046998,22.192,19.061,19.052,22.202]
[1688273046999,55.0,19.06,19.052,22.202]
[1688273047200,22.195,19.058,19.052,22.202]
[1688273047503,57.93011986,19.057,19.038,22.217]
[1688273047683,79.364,19.052,19.038,22.217]
[1688273047881,79.364,19.052,19.028,45.41433247]
[1688273047882,19.55,19.05,19.032,4.73846805]
[1688273048086,183.726,19.045,19.032,4.73846805]
[1688273048285,79.409,19.041,19.032,25.76814305]
[1688273048502,55.0,19.04,19.032,21.029675]
[1688273048696,22.219,19.038,19.032,21.029675]
[1688273048906,22.219,19.038,19.028,22.229]
[1688273049203,22.223,19.035,19.029,22.228]
[1688273049589,55.0,19.034,19.026,22.232]
[1688273049890,22.226,19.032,19.024,22.234]
[1688273050202,22.229,19.029,19.022,22.236]
[1688273050506,55.0,19.028,19.02,55.0]
[1688273050702,77.231,19.028,19.022,22.236]
[1688273050887,22.231,19.028,19.022,22.236]
[1688273051496,55.0,19.027,19.02,77.238]
[1688273051699,22.234,19.025,19.021,20.0]
[1688273052707,22.234,19.025,19.004,104.552]
[1688273052890,55.0,19.024,19.005,5.10918753]
[1688273053213,22.239,19.021,19.012,22.248]
[1688273053706,22.239,19.021,19.006,12.17117]
[1688273053892,79.491,19.021,19.011,22.249]
[1688273054086,22.242,19.018,19.011,22.249]
[1688273056116,22.242,19.018,19.009,10.83719922]
[1688273056309,22.242,19.018,19.01,20.0]
[1688273056609,22.242,19.018,19.01,42.251]
[1688273058894,57.241,19.025,19.01,99.536]
[1688273059100,55.0,19.024,19.01,99.536]
[1688273059506,22.239,19.021,19.01,42.251]
[1688273059720,55.0,19.02,19.01,42.251]
[1688273060013,22.243,19.017,19.01,42.251]
[1688273062103,55.0,19.016,19.01,42.251]
[1688273062417,22.243,19.017,19.01,42.251]
[1688273062418,22.242,19.018,19.01,42.251]
[1688273064117,57.223,19.031,19.011,1.17783221]
[1688273064298,22.235,19.024,19.016,22.243]
[1688273067105,96.298,19.029,19.016,22.243]
[1688273067710,22.233,19.025,19.016,22.243]
[1688273068322,55.0,19.024,19.014,22.246]
[1688273068628,22.238,19.021,19.014,22.246]
[1688273069123,55.0,19.02,19.014,22.246]
[1688273069314,22.241,19.019,19.014,22.246]
[1688273069716,22.241,19.019,19.013,22.246]
[1688273070430,22.241,19.019,19.013,44.492]
[1688273071422,22.239,19.021,19.013,44.492]
[1688273073927,96.298,19.029,19.013,44.492]
[1688273074120,22.234,19.025,19.013,44.492]
[1688273075425,22.238,19.021,19.013,44.492]
[1688273075627,55.0,19.02,19.013,44.492]
[1688273075830,22.241,19.019,19.013,44.492]
[1688273080528,55.0,19.02,19.013,44.492]
[1688273080834,9.8,19.03,19.013,44.492]
[1688273081036,22.239,19.02,19.013,44.492]
[1688273084623,55.0,19.019,19.013,44.492]
[1688273084823,77.241,19.019,19.013,22.246]
[1688273085030,77.241,19.019,19.013,44.493]
[1688273086533,55.0,19.019,19.014,22.245]
[1688273087539,22.241,19.019,19.013,22.246]
[1688273087736,55.0,19.018,18.996,53.15]
[1688273088033,55.0,19.018,18.998,22.264]
[1688273088034,22.249,19.012,18.998,22.264]
[1688273088422,55.0,19.018,18.998,57.328]
[1688273088423,22.254,19.008,18.998,57.328]
[1688273088930,55.0,19.007,18.997,22.266]
[1688273089126,151.6065,19.007,18.997,79.59]
[1688273091233,151.6065,19.007,18.998,20.0]
[1688273091438,151.6065,19.007,19.0,79.575]
[1688273091634,55.0,19.007,19.001,20.0]
[1688273091837,55.0,19.007,19.002,22.259]
[1688273092725,55.0,19.007,19.002,126.826]
[1688273092932,55.0,19.007,19.002,22.259]
[1688273093342,94.202,19.011,19.002,22.259]
[1688273093531,476.3,19.034,19.002,22.259]
[1688273093735,94.202,19.018,19.003,3.75047733]
[1688273093933,94.202,19.018,19.007,22.254]
[1688273094133,22.242,19.018,19.007,22.254]
[1688273095035,22.242,19.018,19.001,20.0]
[1688273095234,126.721,19.018,19.005,22.257]
[1688273095420,126.721,19.018,19.003,22.258]
[1688273095933,126.721,19.018,18.999,20.0]
[1688273095934,55.0,19.017,19.001,22.26]
[1688273096243,79.527,19.013,19.001,22.26]
[1688273096539,22.252,19.009,19.001,22.26]
[1688273096738,22.256,19.006,19.001,22.26]
[1688273097146,55.0,19.005,19.001,22.26]
[1688273097838,77.256,19.006,19.001,22.26]
[1688273099543,99.5916,19.01,19.001,22.26]
[1688273100340,99.5916,19.01,19.001,126.833]
[1688273100724,22.253,19.009,19.001,22.26]
[1688273100930,55.0,19.008,19.001,22.26]
[1688273102047,22.255,19.007,19.001,22.26]
[1688273102251,22.258,19.004,18.999,20.0]
[1688273102425,22.258,19.004,18.992,2.66847572]
[1688273102426,79.561,19.004,18.992,2.66847572]
[1688273102630,184.178,18.998,18.981,57.371]
[1688273103044,22.272,18.993,18.981,57.371]
[1688273103232,22.276,18.989,18.981,22.284]
[1688273103546,57.334,18.994,18.981,22.284]
[1688273103547,55.0,18.988,18.981,22.284]
[1688273103931,22.271,18.993,18.981,22.284]
[1688273104131,9.78,19.0,18.981,33.12119922]
[1688273104334,55.0,18.999,18.981,33.12119922]
[1688273104831,22.267,18.997,18.981,33.12119922]
[1688273105143,55.0,18.996,18.981,22.284]
[1688273105348,79.614,18.992,18.979,22.286]